bitfinex-derivatives/quotes_SOLF0:USTF0_20251201
["timestamp","ask_amount","ask_price","bid_price","bid_amount"]
[1764548075948,6.42543345,131.08,130.92,14.58]
[1764548076144,0.04973603,131.02,130.99,0.05495612]
[1764548076342,0.05493046,131.02,130.92,14.58]
[1764548076546,12.33810638,131.06,130.92,14.58]
[1764548076547,18.76353983,131.06,130.92,14.58]
[1764548076945,18.76353983,131.06,130.94,6.8729]
[1764548077150,6.42543345,131.05,130.94,6.8729]
[1764548077346,29.32543345,131.04,130.92,14.58]
[1764548077553,0.05397351,131.01,130.98,0.04815694]
[1764548077752,0.05397351,131.01,130.92,14.58]
[1764548078056,11.59873917,131.05,130.94,6.8731]
[1764548078250,18.76353983,131.06,130.92,14.58]
[1764548078551,35.23810638,131.06,130.92,14.58]
[1764548078746,35.23810638,131.06,130.92,121.5072]
[1764548078747,0.05424382,131.0,130.92,121.5072]
[1764548078964,5.17330572,131.05,130.94,119.0324]
[1764548079155,29.8,131.06,130.96,106.8993]
[1764548079451,48.56353983,131.14,131.0,106.8661]
[1764548079650,5.17126358,131.13,130.99,118.9948]
[1764548079955,0.05033594,131.07,131.05,0.05008708]
[1764548080149,0.05708042,131.07,131.05,0.05486943]
[1764548080349,1.57708042,131.07,131.05,0.05486943]
[1764548080745,0.05708042,131.07,130.98,4.37234304]
[1764548080941,29.32543345,131.09,130.98,4.37234304]
[1764548081143,22.9,131.06,130.92,14.58]
[1764548081946,0.0533616,131.0,130.92,26.7]
[1764548082152,22.9,131.05,130.93,12.12]
[1764548082352,22.9,131.05,130.92,14.58]
[1764548082754,22.9,131.05,130.93,12.12]
[1764548082951,22.9,131.08,130.93,12.12]
[1764548083349,0.05330589,131.02,131.01,6.8694]
[1764548083662,0.05804399,131.03,131.0,0.04849889]
[1764548083855,0.0539691,131.03,131.0,0.0517626]
[1764548084057,0.0539691,131.03,131.0,6.9212626]
[1764548084860,0.0539691,131.03,131.0,0.0517626]
[1764548087160,0.0539691,131.03,131.01,6.8694]
[1764548087955,0.0539691,131.03,131.0,0.0517626]
[1764548088255,0.0539691,131.03,130.92,13.8346]
[1764548088455,22.9,131.06,130.92,13.8346]
[1764548088960,22.9,131.03,130.96,6.8717]
[1764548089160,22.9,131.03,130.92,13.8346]
[1764548089355,0.05667518,130.99,130.92,13.8346]
[1764548089553,22.95667518,130.99,130.87,11.88]
[1764548089756,12.33810638,131.04,130.88,106.9616]
[1764548089757,0.05864082,130.94,130.88,106.9616]
[1764548089960,22.9,131.03,130.91,11.88]
[1764548090148,129.17906333,131.07,130.93,11.88]
[1764548090348,5.17906333,131.06,130.96,118.7787]
[1764548090654,29.76,131.11,130.99,11.88]
[1764548090854,22.9,131.1,130.98,12.33810638]
[1764548091055,22.9,131.1,130.95,11.88]
[1764548091056,0.05233489,131.05,131.03,6.91834073]
[1764548091255,0.0510202,131.05,131.03,6.91834073]
[1764548091559,0.0510202,131.05,131.03,0.05034073]
[1764548091954,0.0510202,131.05,130.95,24.21810638]
[1764548091955,0.0510202,131.05,130.91,4.77244711]
[1764548092155,22.9,131.0,130.87,12.33810638]
[1764548092861,22.9,131.02,130.9,118.8258]
[1764548093058,0.05220388,130.97,130.91,24.21810638]
[1764548093260,0.05220388,130.97,130.96,6.8721]
[1764548093658,0.05220388,130.97,130.91,6.8745]
[1764548093857,0.05220388,130.97,130.86,11.88]
[1764548094058,0.05064574,130.93,130.86,11.88]
[1764548094364,29.76,131.05,130.95,11.88]
[1764548094767,0.05515122,131.01,131.0,6.87]
[1764548094967,0.05051736,131.02,130.95,11.88]
[1764548095261,0.05702231,131.0,130.95,11.88]
[1764548095768,0.05702231,131.0,130.94,12.33810638]
[1764548096165,0.05702231,131.0,130.98,6.8707]
[1764548096365,0.05702231,131.0,130.94,12.33810638]
[1764548096870,0.05702231,131.0,130.9,24.21810638]
[1764548097166,0.04890167,130.96,130.9,24.21810638]
[1764548097360,29.76,131.05,130.95,11.88]
[1764548097570,31.08915744,131.05,130.95,11.88]
[1764548097960,31.08915744,131.05,130.99,6.8702]
[1764548098262,31.08915744,131.05,130.95,11.88]
[1764548098464,0.05650824,131.03,131.01,0.05469913]
[1764548098866,22.95650824,131.03,131.01,0.00469913]
[1764548099070,24.47650824,131.03,131.01,0.00469913]
[1764548099672,31.34520824,131.03,131.01,0.00469913]
[1764548099871,36.51754728,131.03,131.01,0.00469913]
[1764548100164,1.52,131.02,131.01,0.00469913]
[1764548100473,22.9,130.98,130.84,11.88]
[1764548100770,29.7712,130.98,130.88,6.8762]
[1764548100972,22.9,130.98,130.84,11.88]
[1764548101269,0.05149749,130.92,130.86,11.88]
[1764548101571,22.9,131.0,130.81,11.88]
[1764548101572,0.05176118,130.9,130.81,11.88]
[1764548101767,0.05305886,130.87,130.81,11.88]
[1764548101973,22.9,130.96,130.87,6.8768]
[1764548102266,0.05459556,130.93,130.81,11.1148]
[1764548102465,0.04887978,130.88,130.81,11.1148]
[1764548102669,22.9,130.95,130.83,0.0583927]
[1764548102868,11.58234974,131.0,130.84,12.33810638]
[1764548103172,34.89233904,131.04,130.88,119.29730638]
[1764548103372,36.1300107,131.04,130.88,12.33810638]
[1764548103667,22.94965147,130.97,130.95,0.05707376]
[1764548103864,5.17233904,130.99,130.86,12.33810638]
[1764548104173,6.4100107,131.02,130.86,119.31580638]
[1764548104365,6.4100107,131.01,130.87,11.88]
[1764548104671,22.9,130.98,130.87,11.1198]
[1764548104969,0.05161245,130.95,130.83,106.9999]
[1764548105169,7.55,130.99,130.91,6.8743]
[1764548105468,6.8702,131.0,130.91,6.8743]
[1764548105469,6.4100107,130.97,130.91,6.8743]
[1764548105771,42.03234974,131.02,130.87,12.33810638]
[1764548105969,5.17233904,131.01,130.91,12.33810638]
[1764548106173,0.05539064,130.97,130.96,6.8716]
[1764548106369,6.4100107,131.03,130.95,0.05055698]
[1764548106370,7.60116283,130.98,130.95,0.0484675]
[1764548106675,5.17233904,130.97,130.95,0.04817909]
[1764548106877,6.4100107,131.03,130.96,11.88]
[1764548107061,18.5000107,131.03,130.95,0.04817909]
[1764548107257,6.4100107,130.99,130.92,6.8737]
[1764548107457,6.4100107,130.98,130.92,18.7537]
[1764548107662,12.09,130.97,130.86,11.88]
[1764548107965,6.4100107,130.98,130.83,11.88]
[1764548107966,22.9,130.92,130.83,11.88]
[1764548108166,41.4000107,130.92,130.9,0.05656234]
[1764548108367,6.46118909,130.92,130.86,18.80504515]
[1764548108666,12.14114233,130.9,130.88,0.05750926]
[1764548108866,22.9,130.91,130.88,0.05032779]
[1764548109063,0.05144141,130.9,130.88,0.05032779]
[1764548110063,6.46145211,130.9,130.88,0.05032779]
[1764548110269,6.4100107,130.89,130.88,0.05032779]
[1764548110768,6.5549067,130.89,130.88,0.05032779]
[1764548110969,6.60634811,130.9,130.88,0.05032779]
[1764548111169,16.14249779,131.02,130.88,0.05032779]
[1764548111170,6.55680096,130.94,130.92,11.88]
[1764548111476,8.5672446,130.97,130.86,11.88]
[1764548111673,8.5672446,130.97,130.9,6.8749]
[1764548111879,1.32915744,131.05,130.9,6.8749]
[1764548111880,14.18002434,131.05,130.9,11.88]
[1764548112074,12.09,131.03,130.9,11.88]
[1764548112265,0.05142028,130.98,130.95,0.05587112]
[1764548112472,0.05142028,130.98,130.95,0.05037153]
[1764548112873,0.05142028,130.98,130.95,11.93037153]
[1764548113376,0.05142028,130.98,130.97,11.88]
[1764548113579,1.32915744,131.05,130.97,11.88]
[1764548113879,1.32915744,131.05,130.98,6.8708]
[1764548114078,13.41915744,131.05,130.92,11.88]
[1764548114577,0.05470056,131.0,130.97,11.93073551]
[1764548114776,0.05470056,131.0,130.97,11.93459192]
[1764548115577,42.5508669,131.09,130.99,11.88]
[1764548115777,29.7,131.09,130.99,11.88]
[1764548115978,29.7,131.09,131.01,6.8693]
[1764548116177,29.7,131.09,130.99,11.88]
[1764548116676,0.05037678,131.05,131.03,11.93433904]
[1764548116874,0.05643422,131.05,131.03,11.92937391]
[1764548117077,29.7,131.09,131.03,18.79747391]
[1764548117275,29.7,131.09,131.03,11.92937391]
[1764548117576,12.09,131.08,130.98,4.28737391]
[1764548117781,12.09,131.07,130.98,4.28737391]
[1764548117984,34.99,131.06,130.93,21.7645789]
[1764548118182,12.09,131.06,130.93,21.7645789]
[1764548118580,6.8699,131.01,130.88,21.7645789]
[1764548118782,0.05613099,130.96,130.93,0.05489104]
[1764548119079,0.05613099,130.96,130.84,21.7645789]
[1764548119080,5.13188157,130.95,130.84,21.7645789]
[1764548119381,5.13188157,130.94,130.8,21.7645789]
[1764548119580,5.13188157,130.93,130.8,21.7645789]
[1764548119772,5.13188157,130.92,130.81,11.43]
[1764548119978,5.13188157,130.91,130.81,11.43]
[1764548120182,5.12939444,130.94,130.85,0.05543677]
[1764548120379,29.66,130.96,130.8,21.7645789]
[1764548120681,11.95,130.92,130.79,6.8806]
[1764548120886,11.95,130.92,130.75,21.0031789]
[1764548121083,34.85,130.92,130.75,21.0031789]
[1764548121291,0.05670502,130.85,130.82,0.05271697]
[1764548121586,0.05819423,130.85,130.82,0.05349964]
[1764548122081,12.00819423,130.85,130.82,0.05349964]
[1764548122293,0.05819423,130.85,130.82,10.49349964]
[1764548122589,11.95,130.99,130.82,12.01349964]
[1764548122788,1.33019896,130.95,130.82,10.44]
[1764548123091,36.18019896,130.95,130.82,10.44]
[1764548123289,22.9,130.93,130.82,10.44]
[1764548123476,22.9,130.93,130.71,107.1]
[1764548123477,11.95,130.87,130.69,128.8805789]
[1764548123676,11.95,130.85,130.69,21.7645789]
[1764548124187,106.9381,130.92,130.65,107.1488]
[1764548124188,11.95,130.9,130.72,21.7645789]
[1764548124393,11.95,130.9,130.73,107.0847]
[1764548124690,0.05367944,130.83,130.8,0.04937076]
[1764548124895,12.00356566,130.83,130.8,0.05465952]
[1764548125080,12.00356566,130.83,130.66,21.7645789]
[1764548125081,13.52356566,130.83,130.66,21.7645789]
[1764548125385,11.95,130.83,130.66,21.7645789]
[1764548125592,11.95,130.83,130.67,2.85]
[1764548125983,0.05685301,130.76,130.74,0.05020317]
[1764548126183,0.05467304,130.76,130.74,0.05700228]
[1764548126788,0.05467304,130.76,130.74,2.90700228]
[1764548127189,6.8777,130.86,130.75,2.85]
[1764548127384,18.8277,130.86,130.75,2.85]
[1764548127594,11.95,130.9,130.76,2.85]
[1764548127796,6.876,130.89,130.76,2.85]
[1764548127987,11.95,130.88,130.76,2.85]
[1764548128188,128.6925789,130.93,130.81,0.04924929]
[1764548128189,12.00462821,130.83,130.81,0.04924929]
[1764548128493,12.00600345,130.83,130.81,0.04881106]
[1764548128680,0.05600345,130.83,130.81,0.04881106]
[1764548128886,11.51,130.92,130.81,4.22881106]
[1764548129088,1.33019896,130.95,130.84,2.66]
[1764548129388,29.66,130.96,130.84,2.66]
[1764548129586,29.66,130.96,130.81,21.7645789]
[1764548129587,29.66,130.96,130.87,6.8766]
[1764548129787,29.66,130.96,130.88,2.66]
[1764548129986,0.05712045,130.93,130.91,2.71029853]
[1764548130186,0.05712045,130.93,130.91,0.05029853]
[1764548130584,0.05712045,130.93,130.72,107.0929]
[1764548130585,0.05712045,130.93,130.82,2.66]
[1764548130785,11.51,130.95,130.82,2.66]
[1764548131283,11.51,130.95,130.83,2.66]
[1764548131486,0.05702896,130.9,130.88,0.05710103]
[1764548131797,0.04997796,130.9,130.88,0.05710103]
[1764548132186,0.04997796,130.9,130.88,2.71710103]
[1764548132388,0.04997796,130.9,130.88,0.05710103]
[1764548133096,11.55997796,130.9,130.83,2.66]
[1764548133399,11.55997796,130.9,130.76,21.7645789]
[1764548133400,0.04997796,130.9,130.82,2.66]
[1764548133597,11.51,130.95,130.82,2.66]
[1764548133793,42.45956369,131.0,130.84,2.66]
[1764548134093,29.62,131.0,130.89,2.66]
[1764548134296,29.62,131.0,130.92,2.66]
[1764548134595,29.62,131.0,130.87,16.7905789]
[1764548134899,29.62,131.0,130.87,21.7645789]
[1764548135297,11.51,131.05,130.87,21.7645789]
[1764548135499,93.0092082,131.07,130.92,0.05519531]
[1764548135692,91.68,131.07,130.91,21.7645789]
[1764548136491,0.04853892,131.0,130.98,0.05024616]
[1764548136691,0.05538889,131.0,130.98,0.05575974]
[1764548136998,91.68,131.07,130.98,1.57575974]
[1764548137190,91.68,131.07,130.96,6.8716]
[1764548137390,91.68,131.07,130.95,21.7645789]
[1764548137596,6.8649,131.1,130.95,6.8725]
[1764548137906,0.04964522,131.04,131.01,0.04876105]
[1764548138093,0.05350738,131.04,131.01,0.05094179]
[1764548139306,11.51,131.1,131.01,0.05094179]
[1764548139307,40.1346789,131.19,131.02,6.8685]
[1764548139499,12.83819358,131.19,131.01,21.81552069]
[1764548139807,91.66,131.23,131.05,21.7645789]
[1764548140012,91.66,131.23,131.09,21.7645789]
[1764548140306,91.66,131.23,131.15,0.04834424]
[1764548140505,91.66,131.23,131.05,106.8209]
[1764548140506,41.11,131.28,131.05,106.8209]
[1764548140696,11.51,131.27,131.11,6.864]
[1764548140899,11.51,131.27,131.08,21.7645789]
[1764548140900,11.51,131.26,131.08,21.7645789]
[1764548141113,11.51,131.26,131.04,106.8291]
[1764548141306,11.51,131.26,131.08,21.7645789]
[1764548141500,0.00368798,131.16,131.14,0.04937279]
[1764548141696,11.51,131.26,131.1,6.8643]
[1764548142113,11.51,131.26,131.08,21.7645789]
[1764548142414,11.51,131.24,131.07,6.8661]
[1764548142912,21.7645789,131.26,131.14,0.05127199]
[1764548143099,11.51,131.29,131.04,106.8322]
[1764548143299,1.32720581,131.25,131.08,21.7645789]
[1764548143614,11.51,131.29,131.12,21.7645789]
[1764548143910,0.05094412,131.22,131.19,0.05307416]
[1764548144095,0.05308257,131.22,131.19,0.05727279]
[1764548144297,11.51,131.29,131.19,0.05727279]
[1764548144500,11.51,131.29,131.15,6.8618]
[1764548145409,0.05724469,131.23,131.21,0.0480455]
[1764548145610,0.05731409,131.23,131.21,0.04852861]
[1764548147008,13.08731409,131.23,131.12,6.8635]
[1764548147207,11.51,131.23,131.12,6.8635]
[1764548147617,11.51,131.23,131.09,6.8651]
[1764548147809,11.51,131.22,131.08,7.97212]
[1764548148213,11.56536151,131.16,131.14,0.05302013]
[1764548148516,0.05215478,131.16,131.14,0.05325213]
[1764548148711,29.54,131.24,131.14,0.05325213]
[1764548149014,11.51,131.23,131.08,7.97212]
[1764548149205,29.54,131.24,131.13,6.8628]
[1764548149608,29.54,131.24,131.11,14.1305789]
[1764548149814,11.12,131.31,131.17,6.8609]
[1764548150314,11.12,131.31,131.17,6.861]
[1764548150708,11.12,131.31,131.09,62.0]
[1764548150908,0.05014946,131.21,131.19,0.05396946]
[1764548151117,0.05014946,131.21,131.19,0.056527]
[1764548151310,11.17014946,131.21,131.19,0.056527]
[1764548151513,12.69014946,131.21,131.06,21.7645789]
[1764548151702,11.12,131.21,131.02,21.7645789]
[1764548152611,0.05215343,131.16,131.13,0.05700248]
[1764548152915,11.17215343,131.16,130.98,21.7645789]
[1764548153213,11.12,131.16,130.98,21.7645789]
[1764548153917,0.0519761,131.13,130.98,21.7645789]
[1764548154109,11.1719761,131.13,130.98,21.7645789]
[1764548154614,0.0519761,131.13,130.98,21.7645789]
[1764548154804,11.1719761,131.13,130.98,21.7645789]
[1764548155009,11.1719761,131.13,131.09,0.05869251]
[1764548155414,11.1719761,131.13,130.97,6.67]
[1764548155716,11.12,131.13,130.97,6.67]
[1764548156417,0.05130183,131.06,131.04,0.05596807]
[1764548156716,11.17849184,131.06,131.04,0.05638269]
[1764548157110,0.05849184,131.06,131.04,0.05638269]
[1764548158418,11.12,131.14,131.04,6.73638269]
[1764548158609,11.12,131.14,131.04,6.68]
[1764548159312,0.05350374,131.1,131.08,0.04818905]
[1764548159508,0.05350374,131.1,131.08,0.05161732]
[1764548160417,12.69350374,131.1,130.98,6.68]
[1764548160622,11.12,131.1,130.98,6.68]
[1764548160813,11.12,131.09,130.91,6.73]
[1764548161117,11.12,131.09,130.95,6.73]
[1764548161329,11.12,131.13,130.95,6.73]
[1764548161616,0.05741199,131.05,131.03,0.04864393]
[1764548161917,0.05741199,131.05,131.03,0.05405291]
[1764548161918,0.05575206,131.05,131.03,0.05405291]
[1764548162121,0.05575206,131.05,131.03,6.78405291]
[1764548162316,0.05575206,131.05,131.03,0.05405291]
[1764548162517,0.05575206,131.05,131.03,6.78405291]
[1764548162819,11.12,131.15,131.03,8.30405291]
[1764548163015,29.48,131.18,131.03,6.73]
[1764548163415,40.6,131.18,131.03,6.73]
[1764548163726,91.52,131.25,131.03,6.73]
[1764548163727,11.12,131.23,131.1,6.73]
[1764548163910,12.44667455,131.32,131.14,6.68]
[1764548164114,21.7645789,131.35,131.17,6.68]
[1764548164312,11.12,131.35,131.18,6.68]
[1764548164518,17.9731,131.33,131.18,6.68]
[1764548164724,11.17859934,131.27,131.24,0.05579731]
[1764548164913,11.17859934,131.27,131.24,0.0546927]
[1764548164914,11.16952764,131.27,131.24,0.0546927]
[1764548165424,0.04952764,131.27,131.24,0.0546927]
[1764548166223,128.91273174,131.44,131.24,0.0546927]
[1764548166224,11.12,131.37,131.24,0.0546927]
[1764548166521,11.12,131.37,131.2,21.7645789]
[1764548166722,11.12,131.42,131.24,21.7645789]
[1764548166920,12.44566378,131.42,131.24,21.7645789]
[1764548167222,102.66,131.43,131.32,0.05451526]
[1764548167523,91.54,131.43,131.28,21.7645789]
[1764548167915,91.54,131.43,131.31,6.8537]
[1764548168127,29.46,131.47,131.29,106.6304]
[1764548168420,11.12,131.46,131.36,0.05004704]
[1764548168719,11.12,131.46,131.27,21.7645789]
[1764548168928,11.12,131.46,131.33,6.8522]
[1764548169328,11.12,131.46,131.38,0.04961951]
[1764548169526,11.12,131.46,131.29,6.8546]
[1764548170024,11.12,131.42,131.22,21.7645789]
[1764548170215,11.12,131.42,131.18,21.7645789]
[1764548170415,11.12,131.36,131.18,12.28217505]
[1764548170616,11.12,131.36,131.26,0.05032162]
[1764548170617,0.05159739,131.28,131.26,0.05032162]
[1764548170818,0.05114627,131.28,131.26,0.04814405]
[1764548171722,11.12,131.4,131.26,1.56814405]
[1764548171922,11.12,131.4,131.23,12.28217505]
[1764548172222,11.12,131.4,131.2,12.28217505]
[1764548172428,12.28217505,131.42,131.2,12.28217505]
[1764548172429,11.12,131.39,131.2,12.28217505]
[1764548172729,11.12,131.39,131.28,0.05225625]
[1764548173023,11.12,131.39,131.32,0.04997421]
[1764548173324,29.42,131.44,131.32,0.04997421]
[1764548173522,40.54,131.44,131.37,0.04812076]
[1764548173717,11.12,131.43,131.25,12.28217505]
[1764548173915,11.12,131.4,131.25,12.28217505]
[1764548174315,11.12,131.4,131.19,106.7096]
[1764548174527,11.12,131.4,131.23,12.28217505]
[1764548174823,0.0549275,131.33,131.3,0.04880873]
[1764548175024,40.54,131.44,131.3,0.05066109]
[1764548175325,40.54,131.44,131.29,6.8547]
[1764548175526,40.54,131.44,131.25,12.28217505]
[1764548175729,11.12,131.43,131.25,12.28217505]
[1764548175925,34.02,131.43,131.25,12.28217505]
[1764548176228,17.9686,131.41,131.33,0.05657062]
[1764548176431,17.9686,131.41,131.36,0.04964671]
[1764548176432,11.12,131.41,131.36,0.04964671]
[1764548176631,11.12,131.41,131.37,0.05251545]
[1764548176831,11.12,131.39,131.25,12.28217505]
[1764548177032,11.12,131.39,131.22,12.28217505]
[1764548177429,11.12,131.34,131.19,6.8598]
[1764548177728,0.05662514,131.28,131.25,0.04892645]
[1764548177922,11.12,131.28,131.16,12.28217505]
[1764548178217,0.05722511,131.23,131.21,0.04862546]
[1764548178418,0.05379411,131.23,131.21,0.04862546]
[1764548178825,11.17379411,131.23,131.21,0.04862546]
[1764548179529,11.17379411,131.23,131.09,12.28217505]
[1764548179718,10.32,131.28,131.14,6.8624]
[1764548179926,10.32,131.33,131.17,12.28217505]
[1764548180323,10.32,131.37,131.21,12.28217505]
[1764548180532,0.05698915,131.3,131.28,0.05659908]
[1764548180727,10.32,131.3,131.17,12.28217505]
[1764548180932,0.05768493,131.25,131.22,0.04840311]
[1764548181132,0.05768493,131.25,131.22,0.05609019]
[1764548182329,10.37768493,131.25,131.22,0.05609019]
[1764548182535,10.37768493,131.25,131.12,4.69626524]
[1764548182734,10.32,131.25,131.12,4.69626524]
[1764548183036,10.32,131.25,131.16,6.8614]
[1764548183331,10.32,131.25,131.14,105.9758]
[1764548183536,10.32,131.25,131.18,0.05552895]
[1764548183537,0.05556083,131.21,131.18,0.05552895]
[1764548184140,12.08556083,131.21,131.12,106.7665]
[1764548184334,10.51,131.2,131.08,100.2957]
[1764548184932,10.51,131.19,131.1,6.8647]
[1764548185133,10.55830696,131.16,131.13,0.05501773]
[1764548185332,10.55830696,131.16,131.13,0.05603673]
[1764548185529,0.04830696,131.16,131.13,0.05603673]
[1764548185729,10.55830696,131.16,131.13,0.05603673]
[1764548185928,10.55830696,131.16,131.07,106.8052]
[1764548185929,12.07830696,131.16,131.07,6.8663]
[1764548186135,10.51,131.16,131.04,106.8319]
[1764548186435,10.51,131.14,131.04,6.8675]
[1764548186630,10.51,131.13,131.04,6.8675]
[1764548186834,10.51,131.09,131.07,0.05206926]
[1764548187437,10.51,131.09,131.07,0.00206926]
[1764548188033,10.56193719,131.1,131.07,0.00206926]
[1764548188737,0.05193719,131.1,131.07,0.00206926]
[1764548188927,10.56193719,131.1,131.07,0.00206926]
[1764548190039,12.08193719,131.1,130.96,119.17637505]
[1764548190240,10.51,131.1,130.96,12.28217505]
[1764548191140,0.04834065,131.04,131.02,0.05432683]
[1764548191335,0.05436363,131.04,131.02,0.05448698]
[1764548191945,39.89,131.14,131.02,1.57448698]
[1764548192242,39.89,131.14,131.0,262.28217505]
[1764548192442,10.51,131.13,131.0,262.28217505]
[1764548192747,10.51,131.12,131.0,250.0]
[1764548193041,10.51,131.06,131.0,250.0]
[1764548193349,10.51,131.1,131.0,250.0]
[1764548194041,10.51,131.07,131.04,0.05825487]
[1764548194242,10.51,131.05,131.0,250.0]
[1764548194751,10.51,131.05,131.0,242.366]
[1764548195243,10.51,131.05,131.01,0.04920304]
[1764548195444,0.0544617,131.06,131.01,0.04920304]
[1764548195945,13.0,131.12,131.01,0.04920304]
[1764548196150,13.0,131.12,131.02,113.719]
[1764548196340,2.49,131.12,131.03,106.842]
[1764548196646,2.49,131.12,131.04,12.28217505]
[1764548196947,2.49,131.12,131.07,0.05692199]
[1764548197536,13.0,131.12,131.07,0.05692199]
[1764548197742,10.51,131.11,131.0,242.366]
[1764548198436,10.51,131.08,131.0,234.724]
[1764548198851,0.05619737,131.05,131.03,0.0575727]
[1764548200142,13.0,131.12,131.03,0.0575727]
[1764548200341,13.0,131.12,131.0,234.724]
[1764548200544,13.0,131.12,131.0,241.5936]
[1764548201144,0.04891801,131.07,131.05,0.05027098]
[1764548201343,0.05509534,131.07,131.05,0.05027098]
[1764548203843,2.49,131.12,131.05,0.05027098]
[1764548204359,2.49,131.12,131.06,19.14887505]
[1764548204851,2.49,131.12,131.08,0.05542071]
[1764548205047,0.05056968,131.1,131.08,0.05542071]
[1764548205248,2.49,131.12,131.08,0.05542071]
[1764548206351,117.2203,131.2,131.08,0.05542071]
[1764548206553,10.51,131.19,131.06,19.14887505]
[1764548206847,17.3706,131.18,131.06,19.14887505]
[1764548207248,40.2706,131.18,131.06,19.14887505]
[1764548207448,106.7103,131.2,131.11,0.0513326]
[1764548207449,0.05276809,131.13,131.11,0.0513326]
[1764548207660,0.055259,131.13,131.11,0.05410909]
[1764548208045,10.51,131.22,131.12,1.52]
[1764548208352,10.51,131.22,131.1,19.14677505]
[1764548208857,106.675,131.24,131.1,19.14677505]
[1764548208858,113.5326,131.24,131.12,6.8636]
[1764548209151,0.05826548,131.19,131.17,0.05230913]
[1764548209351,0.05165646,131.19,131.14,4.71450713]
[1764548209556,0.05165646,131.19,131.12,12.28217505]
[1764548209758,10.47,131.23,131.12,12.28217505]
[1764548209951,10.47,131.22,131.12,12.28217505]
[1764548210146,117.1584,131.22,131.12,12.28217505]
[1764548210346,0.05570406,131.18,131.16,0.05205575]
[1764548211555,10.52570406,131.18,131.16,0.05205575]
[1764548211862,10.52570406,131.18,131.08,4.6922308]
[1764548212052,10.47,131.22,131.08,4.6922308]
[1764548212247,10.47,131.22,131.09,106.7905]
[1764548212755,0.05438921,131.17,131.14,0.05645425]
[1764548212961,0.05438921,131.17,131.14,0.05603781]
[1764548215056,10.47,131.26,131.14,0.05603781]
[1764548215358,10.47,131.26,131.12,12.28217505]
[1764548215959,10.5246848,131.2,131.18,0.05351161]
[1764548216160,10.52796081,131.2,131.18,0.05223702]
[1764548216560,10.52796081,131.2,131.11,4.90997891]
[1764548216561,12.04796081,131.2,131.11,4.90997891]
[1764548216859,10.47,131.19,131.08,4.90997891]
[1764548217250,10.47,131.19,131.09,6.865]
[1764548217449,10.47,131.19,131.11,4.90997891]
[1764548217765,0.05654179,131.16,131.14,0.05127967]
[1764548218454,10.47,131.23,131.14,0.05127967]
[1764548218655,115.31153174,131.33,131.14,111.65967891]
[1764548218656,39.75,131.27,131.14,111.65967891]
[1764548218860,39.75,131.27,131.13,106.7607]
[1764548218861,29.28,131.27,131.19,6.8598]
[1764548219456,29.28,131.27,131.17,4.90997891]
[1764548219758,0.04957026,131.23,131.21,0.052672]
[1764548219952,0.04957026,131.23,131.12,113.6283]
[1764548219953,10.51957026,131.23,131.12,113.6283]
[1764548220160,10.47,131.23,131.14,4.90997891]
[1764548220563,10.47,131.22,131.13,6.863]
[1764548221060,10.47,131.18,131.08,106.7994]
[1764548221364,10.47,131.18,131.08,4.90997891]
[1764548221584,33.37,131.18,131.08,4.90997891]
[1764548221760,10.47,131.16,131.05,4.90997891]
[1764548222062,10.47,131.11,131.01,4.90997891]
[1764548222952,10.47,131.1,131.01,4.90997891]
[1764548223157,10.47,131.15,131.04,4.96391103]
[1764548223356,10.47,131.15,131.04,4.90997891]
[1764548223559,10.47,131.15,131.01,106.8561]
[1764548223762,10.47,131.13,131.0,234.724]
[1764548223960,10.47,131.13,131.02,4.90997891]
[1764548224260,0.05785394,131.09,131.06,0.05433579]
[1764548224463,39.73,131.17,131.06,99.23573579]
[1764548224666,10.47,131.16,131.04,106.8323]
[1764548224852,10.47,131.15,131.02,106.8478]
[1764548225256,10.47,131.11,131.0,353.90113533]